fUST/lending_fUST_20250207
["ID","MTS","AMOUNT","RATE_DAILY","PERIOD"]
[352074529,1738936250321,-500.0,0.00013698,2]
[352074531,1738936250331,-500.0,0.00013698,2]
[352074533,1738936250340,-500.0,0.00013698,2]
[352074535,1738936250350,-500.33860162,0.00013698,2]
[352074537,1738936250360,-613.08866727,0.00013698,2]
[352074539,1738936250371,-500.0,0.00013698,2]
[352074541,1738936250382,-500.0,0.00013698,2]
[352074543,1738936250392,-500.0,0.00013698,2]
[352074545,1738936250402,-201.78491196,0.00013698,2]
[352074547,1738936250411,-500.0,0.00013698,2]
[352074550,1738936250421,-500.0,0.00013698,2]
[352074551,1738936250430,-500.0,0.00013698,2]
[352074553,1738936250439,-500.0,0.00013698,2]
[352074555,1738936250449,-500.0,0.00013698,2]
[352074557,1738936250458,-517.13994939,0.00013698,2]
[352074559,1738936250478,-500.0,0.00013698,2]
[352074561,1738936250488,-500.0,0.00013698,2]
[352074564,1738936250498,-500.0,0.00013698,2]
[352074565,1738936250508,-500.0,0.00013698,2]
[352074567,1738936250518,-500.0,0.00013698,2]
[352074569,1738936250528,-500.0,0.00013698,2]
[352074579,1738936250612,-500.0,0.00013698,2]
[352074581,1738936250622,-500.0,0.00013698,2]
[352074583,1738936250631,-500.0,0.00013698,2]
[352074585,1738936250641,-500.0,0.00013698,2]
[352074587,1738936250651,-500.0,0.00013698,2]
[352074590,1738936250661,-500.0,0.00013698,2]
[352074592,1738936250670,-502.43674304,0.00013698,2]
[352074594,1738936250679,-479.616183,0.00013698,2]
[352074596,1738936250688,-500.0,0.00013698,2]
[352074598,1738936250697,-479.616183,0.00013698,2]
[352074600,1738936250706,-500.0,0.00013698,2]
[352074602,1738936250720,-615.56038401,0.00013698,2]
[352074604,1738936250730,-500.0,0.00013698,2]
[352074606,1738936250739,-500.0,0.00013698,2]
[352074608,1738936250748,-500.0,0.00013698,2]
[352074610,1738936250757,-500.0,0.00013698,2]
[352074612,1738936250766,-500.0,0.00013698,2]
[352074613,1738936250775,-500.0,0.00013698,2]
[352074614,1738936250785,-500.0,0.00013698,2]
[352074615,1738936250794,-500.0,0.00013698,2]
[352074616,1738936250804,-500.0,0.00013698,2]
[352074617,1738936250814,-500.0,0.00013698,2]
[352074618,1738936250825,-500.0,0.00013698,2]
[352074619,1738936250836,-500.0,0.00013698,2]
[352074621,1738936250846,-500.0,0.00013698,2]
[352074623,1738936250855,-503.00051377,0.00013698,2]
[352074625,1738936250864,-195.047552,0.00013698,2]
[352074627,1738936250874,-223.65312119,0.00013698,2]
[352076213,1738936354247,343.35,0.00010959,2]
[352076214,1738936418467,3000.0,0.00014,30]
[352076215,1738936418776,3000.0,0.0001401,30]
[352076216,1738936419317,3000.0,0.0001402,30]
[352076217,1738936733164,10000.0,8.001e-05,2]
[352076218,1738936748463,6317.0,8.001e-05,2]
[352076222,1738937229124,-151.00661003,0.00011616,2]
[352076223,1738937234101,-606.09565467,0.00011616,2]
[352076224,1738937254217,-263.41271279,0.00011616,2]
[352076225,1738937257284,1656.78709551,0.0001,2]
[352076226,1738937345090,-5000.0,0.000115,2]
[352076227,1738937345111,-377.6546755,0.00011616,2]
[352076228,1738937394374,122.75597629,0.00011516,2]
[352076314,1738937432716,-612.60541847,0.00011516,2]
[352076382,1738937438347,-29.2680792,0.00011516,2]
[352076521,1738937440149,-1247.25582455,0.00011516,2]
[352076523,1738937440159,-2859.84105431,0.0001182,2]
[352076525,1738937440168,-3923.1752,0.00011867,2]
[352076527,1738937440177,-250.0,0.00011939,2]
[352076528,1738937440186,-3700.0,0.00011972,2]
[352076530,1738937440195,-300.0,0.00012534,2]
[352076533,1738937440205,-1411.72791614,0.00012535,2]
[352076535,1738937440224,-23488.27208386,0.00012535,2]
[352076537,1738937440233,-253.49001499,0.0001292,2]
[352076539,1738937440246,-163.18,0.0001302,2]
[352076541,1738937440257,-300.46,0.00013085,2]
[352076543,1738937440267,-516.6976327,0.0001334,2]
[352076545,1738937440277,-500.0,0.0001334,2]
[352076547,1738937440286,-500.0,0.0001334,2]
[352076549,1738937440296,-77.62602845,0.0001334,2]
[352076553,1738937440323,-422.37397155,0.0001334,2]
[352076555,1738937440337,-276.0579023,0.0001334,2]
[352076558,1738937440347,-500.0,0.0001334,2]
[352076560,1738937440356,-500.0,0.0001334,2]
[352076562,1738937440366,-500.0,0.0001334,2]
[352076564,1738937440375,-500.0,0.0001334,2]
[352076566,1738937440384,-500.0,0.0001334,2]
[352076568,1738937440394,-500.0,0.0001334,2]
[352076570,1738937440404,-500.0,0.0001334,2]
[352076572,1738937440413,-500.0,0.0001334,2]
[352076574,1738937440423,-500.0,0.0001334,2]
[352076576,1738937440432,-500.0,0.0001334,2]
[352076578,1738937440441,-500.0,0.0001334,2]
[352076580,1738937440450,-500.0,0.0001334,2]
[352076582,1738937440460,-500.0,0.0001334,2]
[352076583,1738937440471,-500.0,0.0001334,2]
[352076584,1738937440481,-500.0,0.0001334,2]
[352076585,1738937440491,-500.0,0.0001334,2]
[352076586,1738937440500,-500.0,0.0001334,2]
[352076587,1738937440509,-500.0,0.0001334,2]
[352076588,1738937440518,-500.0,0.0001334,2]
[352076589,1738937440528,-500.0,0.0001334,2]
[352076590,1738937440537,-500.0,0.0001334,2]
[352076591,1738937440548,-500.0,0.0001334,2]
[352076592,1738937440558,-500.0,0.0001334,2]
[352076593,1738937440567,-500.0,0.0001334,2]
[352076594,1738937440576,-500.0,0.0001334,2]
[352076595,1738937440585,-500.0,0.0001334,2]
[352076596,1738937440594,-500.0,0.0001334,2]
[352076597,1738937440603,-500.0,0.0001334,2]
[352076598,1738937440612,-500.0,0.0001334,2]
[352076599,1738937440622,-500.0,0.0001334,2]
[352076600,1738937440632,-500.0,0.0001334,2]
[352076601,1738937440641,-500.0,0.0001334,2]
[352076603,1738937440650,-500.0,0.0001334,2]
[352076605,1738937440659,-500.0,0.0001334,2]
[352076606,1738937440668,-500.0,0.0001334,2]
[352076608,1738937440678,-274.83396974,0.0001334,2]
[352077151,1738937446162,-16.77851223,0.00013304,2]
[352078167,1738937559032,181.01,0.00010959,2]
[352078187,1738938434132,-367.62174606,0.00011872,2]
[352078188,1738938485623,232.46,0.00010959,2]
[352078199,1738938554118,-1504.97958336,0.00011753,2]
[352078204,1738938574141,-1071.63839949,0.00011753,2]
[352078208,1738938599158,181.3,0.00011539,2]
[352078282,1738938632566,-2163.159601,0.00011539,2]
[352078284,1738938632576,-2316.55141715,0.00011753,2]
[352078286,1738938632586,-1678.57156413,0.00011872,2]
[352078288,1738938632595,-250.0,0.00011874,2]
[352078290,1738938632605,-300.0,0.00011971,2]
[352078292,1738938632616,-3400.0,0.00011972,2]
[352078295,1738938632626,-24900.0,0.0001234,2]
[352078297,1738938632641,-158.41802165,0.000125,2]
[352078299,1738938632651,-221.80376309,0.000129,2]
[352078301,1738938632661,-1702.0,0.00013,2]
[352078303,1738938632671,-200.7193394,0.00013,2]
[352078304,1738938632681,-245.62351999,0.00013017,2]
[352078307,1738938632691,-153.0,0.00013017,2]
[352078309,1738938632701,-162.879,0.0001302,2]
[352078311,1738938632714,-11505.63750998,0.00013092,2]
[352078313,1738938632726,-420.0,0.00013142,2]
[352078315,1738938632736,-225.22,0.00013181,2]
[352078317,1738938632746,-221.80376306,0.00013186,2]
[352078318,1738938632755,-1282.42714207,0.000132,6]
[352078320,1738938632765,-418.677,0.000133,2]
[352078323,1738938632775,-155.0,0.00013303,2]
[352078324,1738938632784,-3400.0,0.00013342,2]
[352078326,1738938632794,-150.0,0.00013477,2]
[352078328,1738938632804,-537.0,0.00013477,2]
[352078330,1738938632814,-1975.0,0.00013477,2]
[352078332,1738938632824,-2296.0,0.00013477,2]
[352078334,1738938632833,-396.0,0.00013477,2]
[352078336,1738938632842,-404.458,0.00013477,2]
[352078338,1738938632852,-11366.89999995,0.000135,2]
[352078340,1738938632861,-155.0,0.00013549,2]
[352078342,1738938632871,-155.0,0.00013549,2]
[352078344,1738938632880,-150.028,0.00013554,2]
[352078346,1738938632890,-465.00251551,0.00013573,2]
[352078348,1738938632900,-4496.3145369,0.00013599,2]
[352078350,1738938632910,-42288.27674218,0.000136,2]
[352078352,1738938632919,-126.35106367,0.000136,2]
[352078869,1738938638230,-500.0,0.00013045,2]
[352078871,1738938638241,-344.19082374,0.00013045,2]
[352078874,1738938638252,-155.80917626,0.00013045,2]
[352078876,1738938638262,-500.0,0.00013045,2]
[352078877,1738938638271,-276.0579023,0.00013045,2]
[352078880,1738938638281,-500.0,0.00013045,2]
[352078882,1738938638291,-500.0,0.00013045,2]
[352078883,1738938638300,-500.0,0.00013045,2]
[352078885,1738938638310,-500.0,0.00013045,2]
[352078887,1738938638319,-58.21791644,0.00013045,2]
[352078914,1738938638557,-441.78208356,0.00013045,2]
[352078916,1738938638567,-500.0,0.00013045,2]
[352078918,1738938638576,-500.0,0.00013045,2]
[352078920,1738938638585,-500.0,0.00013045,2]
[352078922,1738938638595,-500.0,0.00013045,2]
[352078924,1738938638604,-500.0,0.00013045,2]
[352078926,1738938638615,-215.64334684,0.00013045,2]
[352078930,1738938638648,-284.35665316,0.00013045,2]
[352078932,1738938638659,-500.0,0.00013045,2]
[352078934,1738938638668,-500.0,0.00013045,2]
[352078936,1738938638678,-500.0,0.00013045,2]
[352078938,1738938638687,-500.0,0.00013045,2]
[352078940,1738938638698,-500.0,0.00013045,2]
[352078942,1738938638708,-500.0,0.00013045,2]
[352078945,1738938638720,-450.0,0.00013045,2]
[352078947,1738938638729,-4408.73063477,0.00013109,2]
[352079132,1738938640455,-584.81335723,0.00013109,2]
[352079135,1738938640472,-453.40201646,0.00013109,2]
[352079137,1738938640484,-536.45,0.00013109,2]
[352079139,1738938640496,-892.5796797,0.00013109,2]
[352079403,1738938643605,-656.115554,0.00013109,2]
[352079664,1738938646319,-500.0,0.00013045,2]
[352079666,1738938646329,-500.0,0.00013045,2]
[352079668,1738938646338,-500.0,0.00013045,2]
[352079670,1738938646349,-500.0,0.00013045,2]
[352079672,1738938646359,-500.0,0.00013045,2]
[352079674,1738938646368,-500.0,0.00013045,2]
[352079676,1738938646378,-500.0,0.00013045,2]
[352079678,1738938646387,-500.0,0.00013045,2]
[352079680,1738938646396,-500.0,0.00013045,2]
[352079682,1738938646405,-500.0,0.00013045,2]
[352079684,1738938646415,-500.0,0.00013045,2]
[352079686,1738938646425,-500.0,0.00013045,2]
[352079688,1738938646435,-500.0,0.00013045,2]
[352079690,1738938646445,-500.0,0.00013045,2]
[352079692,1738938646455,-3973.54626782,0.00013109,2]
[352079694,1738938646464,-24.64893633,0.000136,2]
[352079696,1738938646475,-623.0,0.000136,2]
[352079697,1738938646484,-384.43196202,0.0001365,2]
[352079698,1738938646493,-7438.69753278,0.00013667,2]
[352079699,1738938646504,-500.0,0.00013673,2]
[352079700,1738938646513,-529.25402387,0.00013673,2]
[352079701,1738938646523,-501.94270361,0.00013673,2]
[352079702,1738938646534,-500.0,0.00013673,2]
[352079703,1738938646543,-500.0,0.00013673,2]
[352079704,1738938646554,-500.0,0.00013673,2]
[352079705,1738938646563,-500.0,0.00013673,2]
[352079706,1738938646573,-500.0,0.00013673,2]
[352079707,1738938646583,-12476.60617297,0.0001369,2]
[352079856,1738938753377,205.58,0.00010959,2]
[352079861,1738939631138,-702.246172,0.00011952,2]
[352079862,1738939631160,-1343.51219516,0.00011972,2]
[352079869,1738939809818,232.17007516,0.00011452,2]
[352079870,1738939816174,159.55767806,0.00011337,2]
[352079871,1738939828760,-17081.0,0.00015,60]
[352079872,1738939828857,-511.48839659,0.000187,60]
[352079873,1738939828883,-1404.61352261,0.00019,100]
[352079874,1738939828911,-2000.0,0.0001926,120]
[352079875,1738939828936,-2000.0,0.00019288,120]
[352079876,1738939828962,-2000.0,0.00019315,120]
[352079877,1738939828986,-2000.0,0.00019342,120]
[352079878,1738939829010,-2000.0,0.0001937,120]
[352079879,1738939829037,-2000.0,0.00019397,120]
[352079880,1738939829062,-2000.0,0.00019425,120]
[352079881,1738939829088,-2000.0,0.00019452,120]
[352079882,1738939829117,-2000.0,0.00019479,120]
[352079883,1738939829142,-2000.0,0.00019507,120]
[352079884,1738939829167,-2000.0,0.00019534,120]
[352079885,1738939829192,-2000.0,0.00019562,120]
[352079886,1738939829216,-2000.0,0.00019589,120]
[352079887,1738939829240,-2000.0,0.00019616,120]
[352079888,1738939829265,-2000.0,0.00019644,120]
[352079889,1738939829289,-2000.0,0.00019671,120]
[352079890,1738939829314,-2000.0,0.00019699,120]
[352079891,1738939829339,-2000.0,0.00019726,120]
[352079892,1738939829457,-752.0,0.0002,120]
[352079893,1738939829485,-250.0,0.0002,120]
[352079894,1738939829530,-23903.31326566,0.00020505,120]
[352079895,1738939829555,-6417.48509438,0.00020505,120]
[352079896,1738939829580,-12795.66738008,0.00020849,120]
[352079897,1738939829609,-10000.0,0.00021,120]
[352079898,1738939829634,-250.0,0.00021,120]
[352079899,1738939829660,-12260.0,0.00021066,60]
[352079900,1738939829688,-200.0,0.00022,120]
[352079901,1738939829719,-10000.0,0.00022,120]
[352079902,1738939829746,-200.0,0.00022,120]
[352079903,1738939829772,-10919.13901474,0.00022,120]
[352079904,1738939829799,-1000.0,0.00022,120]
[352079905,1738939829832,-162697.86908871,0.0002258,60]
[352079906,1738939829859,-250.0,0.00023,120]
[352079907,1738939829884,-1416.18,0.00023,60]
[352079908,1738939829908,-1084.899,0.00023,120]
[352079909,1738939829936,-4009.79,0.00024,60]
[352079910,1738939829964,-200.0,0.00024,120]
[352079911,1738939829988,-500.0,0.00024,120]
[352079912,1738939830012,-2030.0,0.00024,60]
[352079913,1738939830038,-150.04726202,0.00024,120]
[352079914,1738939830065,-296.93316598,0.00024,120]
[352079915,1738939830091,-3140.55505997,0.00024,120]
[352079916,1738939830117,-152.8508087,0.00024,120]
[352079917,1738939830141,-1000.0,0.00024,120]
[352079918,1738939830165,-293.27071895,0.00024,120]
[352079919,1738939830191,-181.96609447,0.00024,120]
[352079920,1738939830220,-200.0,0.000244,120]
[352079921,1738939830245,-907.0,0.00024658,120]
[352079922,1738939830269,-1000.0,0.000248,60]
[352079923,1738939830294,-4025.37918182,0.00025,60]
[352079924,1738939830319,-300.0,0.00025,120]
[352079925,1738939830344,-2000.0,0.00025,120]
[352079926,1738939830368,-200.0,0.00025,120]
[352079927,1738939830391,-3967.851949,0.00025,120]
[352079928,1738939830415,-40000.0,0.00025,120]
[352079929,1738939830440,-6148.77448609,0.00025,120]
[352079930,1738939830465,-9900.3435241,0.00025,120]
[352079931,1738939830577,-8787.25007047,0.00025,120]
[352079932,1738939830602,-11583.17023382,0.00025,120]
[352079933,1738939830627,-7168.277766,0.00025,120]
[352079934,1738939830652,-1000.0,0.00025,120]
[352079935,1738939830675,-500.0,0.00025,90]
[352079936,1738939830700,-4924.96319692,0.0002525,120]
[352079937,1738939830726,-8917.50351924,0.000255,120]
[352079938,1738939830751,-642.33059563,0.00026,120]
[352079939,1738939830775,-300.0,0.00026,120]
[352079940,1738939830800,-7438.69753278,0.00026,120]
[352079941,1738939830823,-4942.38486346,0.000261,60]
[352079942,1738939830848,-1333.0,0.00026137,120]
[352079943,1738939830872,-168.20395955,0.00026259,80]
[352079944,1738939830896,-449.37821,0.00027,120]
[352079945,1738939830920,-200.0,0.00027,120]
[352079946,1738939830943,-1000.0,0.00027,120]
[352079947,1738939830969,-5243.0,0.00027,120]
[352079948,1738939830992,-496.12751,0.00027,120]
[352079949,1738939831016,-496.12751,0.00027,120]
[352079950,1738939831044,-496.12751,0.00027,120]
[352079951,1738939831087,-496.12751,0.00027,120]
[352079952,1738939831135,-496.12751,0.00027,120]
[352079953,1738939831185,-496.12751,0.00027,120]
[352079954,1738939831230,-496.12751,0.00027,120]
[352079955,1738939831278,-496.12751,0.00027,120]
[352079956,1738939831339,-496.12751,0.00027,120]
[352079957,1738939831407,-201.96939,0.00027,120]
[352079958,1738939831479,-633.39018,0.00027,120]
[352079959,1738939831528,-5000.0,0.00027,120]
[352079960,1738939831573,-200.0,0.00027,120]
[352079961,1738939831618,-200.0,0.00027,120]
[352079962,1738939831660,-200.0,0.00027,120]
[352079963,1738939831702,-252.0039,0.00027,120]
[352079964,1738939831748,-357.23618,0.00027,120]
[352079965,1738939831788,-357.23618,0.00027,120]
[352079966,1738939831828,-357.23618,0.00027,120]
[352079967,1738939831867,-357.23618,0.00027,120]
[352079968,1738939831905,-357.23618,0.00027,120]
[352079970,1738939831945,-357.23618,0.00027,120]
[352079974,1738939831984,-357.23618,0.00027,120]
[352079976,1738939832025,-357.23618,0.00027,120]
[352079978,1738939832221,-357.23618,0.00027,120]
[352079979,1738939832260,-209.73235,0.00027,120]
[352079980,1738939832285,-55419.05174363,0.00027,120]
[352079981,1738939832311,-1000.0,0.00027,120]
[352079982,1738939832335,-362.93476,0.00027,120]
[352079983,1738939832359,-13577.26,0.000272,120]
[352079985,1738939832383,-400.0,0.00027397,60]
[352079987,1738939832407,-150.8,0.00027397,120]
[352079988,1738939832431,-1459916.00750463,0.00027397,59]
[352080038,1738939832891,-1350.25628998,0.00011337,2]
[352080040,1738939832901,-649.74371002,0.00011452,2]
[352080606,1738939838739,-24018.08621482,0.00011452,2]
[352080608,1738939838748,-2700.0,0.00011972,2]
[352080610,1738939838758,-300.0,0.00012337,2]
[352080612,1738939838767,-497.76528407,0.00012337,2]
[352080614,1738939838783,-500.0,0.00012337,2]
[352080617,1738939838792,-500.0,0.00012337,2]
[352080618,1738939838802,-500.0,0.00012337,2]
[352080620,1738939838811,-500.0,0.00012337,2]
[352080622,1738939838821,-500.0,0.00012337,2]
[352080624,1738939838831,-300.0,0.00012337,2]
[352080627,1738939838840,-500.0,0.00012337,2]
[352080628,1738939838850,-500.0,0.00012337,2]
[352080631,1738939838859,-500.0,0.00012337,2]
[352080633,1738939838868,-500.0,0.00012337,2]
[352080634,1738939838877,-500.0,0.00012337,2]
[352080636,1738939838887,-500.0,0.00012337,2]
[352080638,1738939838897,-500.0,0.00012337,2]
[352080640,1738939838906,-300.0,0.00012337,2]
[352080642,1738939838915,-500.0,0.00012337,2]
[352080644,1738939838925,-500.0,0.00012337,2]
[352080646,1738939838934,-500.0,0.00012337,2]
[352080648,1738939838944,-500.0,0.00012337,2]
[352080650,1738939838953,-445.11607058,0.00012337,2]
[352080652,1738939838963,-500.0,0.00012337,2]
[352080654,1738939838972,-500.0,0.00012337,2]
[352080656,1738939838981,-500.0,0.00012337,2]
[352080658,1738939838990,-500.0,0.00012337,2]
[352080660,1738939838999,-500.0,0.00012337,2]
[352080662,1738939839009,-500.0,0.00012337,2]
[352080664,1738939839018,-500.0,0.00012337,2]
[352080666,1738939839027,-500.0,0.00012337,2]
[352080668,1738939839037,-500.0,0.00012337,2]
[352080670,1738939839047,-500.0,0.00012337,2]
[352080672,1738939839057,-500.0,0.00012337,2]
[352080674,1738939839067,-500.0,0.00012337,2]
[352080676,1738939839076,-500.0,0.00012337,2]
[352080678,1738939839085,-500.0,0.00012337,2]
[352080680,1738939839095,-500.0,0.00012337,2]
[352080682,1738939839104,-500.0,0.00012337,2]
[352080684,1738939839114,-500.0,0.00012337,2]
[352080686,1738939839123,-500.0,0.00012337,2]
[352080688,1738939839132,-500.0,0.00012337,2]
[352080690,1738939839141,-500.0,0.00012337,2]
[352080692,1738939839151,-233.45987189,0.00012337,2]
[352080695,1738939839168,-266.54012811,0.00012337,2]
[352080697,1738939839179,-500.0,0.00012337,2]
[352080699,1738939839188,-500.0,0.00012337,2]
[352080701,1738939839197,-500.0,0.00012337,2]
[352080703,1738939839207,-500.0,0.00012337,2]
[352080705,1738939839216,-500.0,0.00012337,2]
[352080707,1738939839234,-500.0,0.00012337,2]
[352080709,1738939839244,-202.97357127,0.00012337,2]
[352080711,1738939839253,-500.0,0.00012337,2]
[352080713,1738939839263,-500.0,0.00012337,2]
[352080715,1738939839273,-500.0,0.00012337,2]
[352080717,1738939839283,-500.0,0.00012337,2]
[352080719,1738939839292,-500.0,0.00012338,2]
[352080721,1738939839302,-500.0,0.00012338,2]
[352080723,1738939839311,-6228.14,0.00012338,2]
[352080725,1738939839320,-2395.44,0.00012338,2]
[352080727,1738939839330,-500.0,0.00012338,2]
[352080729,1738939839342,-500.0,0.00012338,2]
[352080731,1738939839351,-500.0,0.00012338,2]
[352080733,1738939839360,-500.0,0.00012339,2]
[352080735,1738939839370,-500.0,0.00012339,2]
[352080737,1738939839379,-500.0,0.00012339,2]
[352080739,1738939839391,-500.0,0.00012339,2]
[352080741,1738939839400,-992.16,0.00012339,2]
[352080743,1738939839410,-500.36145644,0.00012339,2]
[352080745,1738939839420,-500.0,0.00012339,2]
[352080747,1738939839429,-500.0,0.00012339,2]
[352080749,1738939839438,-500.0,0.00012339,2]
[352080751,1738939839449,-500.0,0.00012339,2]
[352080753,1738939839462,-500.0,0.00012339,2]
[352080756,1738939839475,-500.0,0.00012339,2]
[352080758,1738939839489,-500.63956298,0.00012339,2]
[352080759,1738939839499,-500.63333304,0.00012339,2]
[352080762,1738939839509,-500.0,0.00012339,2]
[352080763,1738939839518,-673.13,0.00012339,2]
[352080766,1738939839528,-500.48759858,0.00012339,2]
[352080768,1738939839537,-500.0,0.00012339,2]
[352080770,1738939839546,-500.0,0.00012339,2]
[352080772,1738939839556,-500.49220329,0.00012339,2]
[352080773,1738939839565,-500.0,0.00012339,2]
[352080775,1738939839575,-500.0,0.00012339,2]
[352080777,1738939839584,-528.87136262,0.00012339,2]
[352080779,1738939839594,-509.39680974,0.00012339,2]
[352080781,1738939839604,-500.0,0.00012339,2]
[352080784,1738939839614,-500.0,0.00012339,2]
[352080785,1738939839625,-500.0,0.00012339,2]
[352080788,1738939839635,-500.0,0.00012339,2]
[352080790,1738939839645,-500.0,0.00012339,2]
[352080792,1738939839656,-500.0,0.00012339,2]
[352080794,1738939839666,-215.67673299,0.00012339,2]
[352080796,1738939839675,-500.0,0.00012339,2]
[352080798,1738939839685,-500.0,0.00012339,2]
[352080800,1738939839695,-500.0,0.00012339,2]
[352080802,1738939839705,-500.0,0.00012339,2]
[352080803,1738939839715,-500.0,0.00012339,2]
[352080805,1738939839729,-500.18587456,0.00012339,2]
[352080808,1738939839743,-500.0,0.00012339,2]
[352080809,1738939839753,-500.0,0.00012339,2]
[352080812,1738939839762,-500.0,0.00012339,2]
[352080814,1738939839772,-501.12756115,0.00012339,2]
[352080815,1738939839781,-500.35664926,0.00012339,2]
[352080817,1738939839790,-500.0,0.00012339,2]
[352080819,1738939839799,-500.54529009,0.00012339,2]
[352080821,1738939839808,-500.98908613,0.00012339,2]
[352080823,1738939839817,-500.32942337,0.00012339,2]
[352080825,1738939839827,-500.0,0.00012339,2]
[352080827,1738939839837,-500.6345751,0.00012339,2]
[352080829,1738939839847,-500.0,0.00012339,2]
[352080831,1738939839857,-500.0,0.00012339,2]
[352080833,1738939839867,-500.0,0.00012339,2]
[352080835,1738939839876,-500.0,0.00012339,2]
[352080837,1738939839886,-500.0,0.00012339,2]
[352080839,1738939839895,-508.67349844,0.00012339,2]
[352080841,1738939839904,-500.0,0.00012339,2]
[352080843,1738939839914,-500.0,0.00012339,2]
[352080845,1738939839923,-500.0,0.00012339,2]
[352080860,1738939840027,-500.0,0.00012339,2]
[352080862,1738939840037,-500.0,0.00012339,2]
[352080864,1738939840048,-500.0,0.00012339,2]
[352080866,1738939840057,-500.0,0.00012339,2]
[352080868,1738939840067,-500.0,0.00012339,2]
[352080870,1738939840077,-500.0,0.00012339,2]
[352080871,1738939840093,-500.29079218,0.00012339,2]
[352080872,1738939840102,-539.17850903,0.00012339,2]
[352080873,1738939840112,-500.0,0.00012339,2]
[352080874,1738939840122,-500.08571713,0.00012339,2]
[352080875,1738939840131,-500.19135139,0.00012339,2]
[352080876,1738939840142,-326.05066181,0.00012339,2]
[352080877,1738939840152,-500.0,0.00012339,2]
[352080878,1738939840161,-500.0,0.00012339,2]
[352080879,1738939840171,-500.0,0.00012339,2]
[352080880,1738939840180,-500.0,0.00012339,2]
[352080881,1738939840189,-500.0,0.00012339,2]
[352080882,1738939840199,-500.0,0.00012339,2]
[352080883,1738939840208,-500.0,0.00012339,2]
[352080884,1738939840218,-500.0,0.00012339,2]
[352080885,1738939840230,-500.0,0.00012339,2]
[352080886,1738939840239,-482.89834915,0.00012339,2]
[352080887,1738939840248,-574.55,0.00012339,2]
[352080888,1738939840258,-500.0,0.00012339,2]
[352080889,1738939840267,-500.0,0.00012339,2]
[352080890,1738939840276,-500.0,0.00012339,2]
[352080891,1738939840292,-500.0,0.00012475,2]
[352080892,1738939840313,-500.0,0.00012475,2]
[352080893,1738939840323,-6228.14,0.00012475,2]
[352080895,1738939840333,-2395.44,0.00012475,2]
[352080897,1738939840342,-500.0,0.00012475,2]
[352080899,1738939840351,-500.0,0.00012475,2]
[352080901,1738939840361,-500.0,0.00012475,2]
[352080903,1738939840371,-500.0,0.00012476,2]
[352080905,1738939840380,-500.0,0.00012476,2]
[352080907,1738939840389,-500.0,0.00012476,2]
[352080909,1738939840398,-500.43939866,0.00012476,2]
[352080910,1738939840407,-500.39378682,0.00012476,2]
[352080911,1738939840416,-500.0,0.00012476,2]
[352080912,1738939840425,-500.0,0.00012476,2]
[352080913,1738939840434,-500.0,0.00012476,2]
[352080914,1738939840444,-500.0,0.00012476,2]
[352080915,1738939840452,-500.0,0.00012476,2]
[352080916,1738939840462,-673.13,0.00012476,2]